[Event "*** Titled Tuesday Blitz"]
[Site "Chess.com"]
[Date "2020.04.28"]
[Round "7"]
[White "LuisFSiles"]
[Black "GM4life"]
[Result "1-0"]
[WhiteElo "2293"]
[BlackElo "2169"]
[TimeControl "180+1"]
[EndTime "11:18:53 PDT"]
[Termination "LuisFSiles won on time"]

1. d4 {[%clk 0:03:00.9]} 1... Nf6 {[%clk 0:02:59]} 2. c4 {[%clk 0:02:59.8]} 2...
e6 {[%clk 0:02:58.6]} 3. Nf3 {[%clk 0:02:59]} 3... d5 {[%clk 0:02:58.1]} 4. Nc3
{[%clk 0:02:57.9]} 4... Bb4 {[%clk 0:02:57.9]} 5. Bg5 {[%clk 0:02:54.7]} 5... h6
{[%clk 0:02:55.3]} 6. Bxf6 {[%clk 0:02:50.2]} 6... Qxf6 {[%clk 0:02:54.1]} 7.
Qa4+ {[%clk 0:02:49.4]} 7... Nc6 {[%clk 0:02:52.9]} 8. cxd5 {[%clk 0:02:49.2]}
8... exd5 {[%clk 0:02:52.6]} 9. e3 {[%clk 0:02:47.7]} 9... O-O {[%clk
0:02:47.5]} 10. Be2 {[%clk 0:02:41.4]} 10... Qg6 {[%clk 0:02:41.1]} 11. Kf1
{[%clk 0:01:49.2]} 11... Be6 {[%clk 0:02:16.9]} 12. Ne5 {[%clk 0:01:38.6]} 12...
Nxe5 {[%clk 0:02:13.8]} 13. Qxb4 {[%clk 0:01:38.1]} 13... Ng4 {[%clk 0:01:44]}
14. h3 {[%clk 0:01:12.6]} 14... Nf6 {[%clk 0:01:35.5]} 15. Kg1 {[%clk
0:01:11.4]} 15... h5 {[%clk 0:01:32]} 16. Kh2 {[%clk 0:01:09.4]} 16... h4 {[%clk
0:01:32.1]} 17. b3 {[%clk 0:00:52.4]} 17... Qf5 {[%clk 0:01:28.5]} 18. Rhf1
{[%clk 0:00:45.5]} 18... b6 {[%clk 0:01:20.1]} 19. Rac1 {[%clk 0:00:42.9]} 19...
Rac8 {[%clk 0:01:20]} 20. Nb5 {[%clk 0:00:34.1]} 20... a5 {[%clk 0:01:08.7]} 21.
Qe1 {[%clk 0:00:28.1]} 21... c5 {[%clk 0:01:00.6]} 22. Nd6 {[%clk 0:00:27.3]}
22... Qg5 {[%clk 0:00:59]} 23. Nxc8 {[%clk 0:00:26.1]} 23... Rxc8 {[%clk
0:00:59.3]} 24. dxc5 {[%clk 0:00:26.2]} 24... bxc5 {[%clk 0:00:57.8]} 25. Qxa5
{[%clk 0:00:26]} 25... Ne4 {[%clk 0:00:57.6]} 26. Bd3 {[%clk 0:00:16.9]} 26...
Qe5+ {[%clk 0:00:15]} 27. Kg1 {[%clk 0:00:17]} 27... c4 {[%clk 0:00:12.6]} 28.
Bxe4 {[%clk 0:00:16.9]} 28... Qxe4 {[%clk 0:00:12.3]} 29. bxc4 {[%clk 0:00:16]}
29... dxc4 {[%clk 0:00:12.4]} 30. Qg5 {[%clk 0:00:15.3]} 30... f6 {[%clk
0:00:11.7]} 31. Qf4 {[%clk 0:00:14.1]} 31... Qd3 {[%clk 0:00:10.5]} 32. Rfd1
{[%clk 0:00:13.1]} 32... Qe2 {[%clk 0:00:09.7]} 33. Qxh4 {[%clk 0:00:11.9]}
33... c3 {[%clk 0:00:09.3]} 34. Qd4 {[%clk 0:00:11.4]} 34... c2 {[%clk
0:00:09.2]} 35. Re1 {[%clk 0:00:10]} 35... Qa6 {[%clk 0:00:08.5]} 36. Qe4 {[%clk
0:00:08.5]} 36... Qxa2 {[%clk 0:00:08.1]} 37. Kh2 {[%clk 0:00:06.4]} 37... Bd5
{[%clk 0:00:08]} 38. Qg4 {[%clk 0:00:05]} 38... Rc7 {[%clk 0:00:07.3]} 39. e4
{[%clk 0:00:03.8]} 39... Be6 {[%clk 0:00:05.4]} 40. Qf4 {[%clk 0:00:04.1]} 40...
Rc3 {[%clk 0:00:05.4]} 41. Qb8+ {[%clk 0:00:03.6]} 41... Kh7 {[%clk 0:00:05.6]}
42. Qf4 {[%clk 0:00:04]} 42... Qc4 {[%clk 0:00:03.5]} 43. f3 {[%clk 0:00:02.6]}
43... Kg8 {[%clk 0:00:03.5]} 44. Qd2 {[%clk 0:00:02.3]} 44... Bf7 {[%clk
0:00:02.1]} 45. Re2 {[%clk 0:00:02.2]} 1-0

[Event "*** Titled Tuesday Blitz"]
[Site "Chess.com"]
[Date "2020.04.28"]
[Round "7"]
[White "tylityli"]
[Black "Nikolaj_6"]
[Result "0-1"]
[WhiteElo "2334"]
[BlackElo "2621"]
[TimeControl "180+1"]
[EndTime "11:18:54 PDT"]
[Termination "Nikolaj_6 won on time"]

1. e4 {[%clk 0:03:00.9]} 1... c5 {[%clk 0:02:59.8]} 2. Nf3 {[%clk 0:03:01.3]}
2... d6 {[%clk 0:03:00]} 3. d4 {[%clk 0:03:01.8]} 3... cxd4 {[%clk 0:03:00.3]}
4. Nxd4 {[%clk 0:03:02.7]} 4... Nf6 {[%clk 0:03:00.8]} 5. Nc3 {[%clk 0:03:02.9]}
5... a6 {[%clk 0:03:01.2]} 6. Be2 {[%clk 0:03:03.2]} 6... e5 {[%clk 0:03:00.1]}
7. Nb3 {[%clk 0:03:01.9]} 7... Be7 {[%clk 0:03:00.3]} 8. Be3 {[%clk 0:03:01]}
8... Be6 {[%clk 0:02:59]} 9. O-O {[%clk 0:03:00.9]} 9... O-O {[%clk 0:02:58.6]}
10. a4 {[%clk 0:03:01]} 10... a5 {[%clk 0:02:56.1]} 11. Nd5 {[%clk 0:03:00.2]}
11... Bxd5 {[%clk 0:02:53.4]} 12. exd5 {[%clk 0:03:00.1]} 12... b6 {[%clk
0:02:52.9]} 13. c4 {[%clk 0:02:58.7]} 13... Nbd7 {[%clk 0:02:51.6]} 14. f3
{[%clk 0:02:54.8]} 14... Nc5 {[%clk 0:02:49.2]} 15. Nxc5 {[%clk 0:02:54.3]}
15... bxc5 {[%clk 0:02:50.1]} 16. b3 {[%clk 0:02:54.4]} 16... Nd7 {[%clk
0:02:50]} 17. Qc2 {[%clk 0:02:52.6]} 17... Bg5 {[%clk 0:02:48.8]} 18. Bf2 {[%clk
0:02:51.6]} 18... g6 {[%clk 0:02:48.6]} 19. g3 {[%clk 0:02:48.7]} 19... f5
{[%clk 0:02:48.6]} 20. Bd3 {[%clk 0:02:49.1]} 20... Rb8 {[%clk 0:02:40.4]} 21.
Rab1 {[%clk 0:02:43.9]} 21... Bh6 {[%clk 0:02:35.6]} 22. Kg2 {[%clk 0:02:43.7]}
22... Qf6 {[%clk 0:02:31.5]} 23. Be1 {[%clk 0:02:40]} 23... Ra8 {[%clk
0:02:25.3]} 24. Bc3 {[%clk 0:02:40]} 24... Qd8 {[%clk 0:02:22.7]} 25. Qe2 {[%clk
0:02:39.1]} 25... Bg7 {[%clk 0:02:20.6]} 26. g4 {[%clk 0:02:37.5]} 26... e4
{[%clk 0:02:18.2]} 27. Bxg7 {[%clk 0:02:21.9]} 27... Kxg7 {[%clk 0:02:09]} 28.
fxe4 {[%clk 0:02:20.2]} 28... f4 {[%clk 0:02:09.2]} 29. Rf2 {[%clk 0:02:15.8]}
29... Ne5 {[%clk 0:02:09.2]} 30. Qd1 {[%clk 0:01:37.3]} 30... f3+ {[%clk
0:02:06.6]} 31. Kg3 {[%clk 0:01:31.3]} 31... h5 {[%clk 0:01:59.7]} 32. h4 {[%clk
0:01:16.8]} 32... hxg4 {[%clk 0:01:52.1]} 33. Qd2 {[%clk 0:01:13.8]} 33... Rh8
{[%clk 0:01:44.9]} 34. Rh1 {[%clk 0:01:13]} 34... Rh5 {[%clk 0:01:41.5]} 35.
Rfh2 {[%clk 0:00:53.9]} 35... Qf6 {[%clk 0:01:40.2]} 36. Bf1 {[%clk 0:00:52.1]}
36... Rf8 {[%clk 0:01:34.9]} 37. Qe3 {[%clk 0:00:51.6]} 37... Rfh8 {[%clk
0:01:29]} 38. Qd2 {[%clk 0:00:46.5]} 38... R8h6 {[%clk 0:01:28]} 39. Qxa5 {[%clk
0:00:42.4]} 39... g5 {[%clk 0:01:18]} 40. Qc7+ {[%clk 0:00:35.2]} 40... Nf7
{[%clk 0:01:17.9]} 41. hxg5 {[%clk 0:00:21.6]} 41... Qe5+ {[%clk 0:01:16.3]} 42.
Kxg4 {[%clk 0:00:19.9]} 42... Qxg5+ {[%clk 0:01:13.8]} 43. Kxf3 {[%clk
0:00:17.8]} 43... Rxh2 {[%clk 0:01:13.8]} 44. Rxh2 {[%clk 0:00:16]} 44... Rxh2
{[%clk 0:01:14.3]} 45. Qd7 {[%clk 0:00:11]} 45... Qf6+ {[%clk 0:01:12.3]} 46.
Qf5 {[%clk 0:00:07.6]} 46... Qxf5+ {[%clk 0:01:11.7]} 47. exf5 {[%clk
0:00:08.5]} 47... Kf6 {[%clk 0:01:11.3]} 48. Be2 {[%clk 0:00:07]} 48... Rh3+
{[%clk 0:01:08.5]} 49. Ke4 {[%clk 0:00:05.7]} 49... Rxb3 {[%clk 0:01:06.3]} 50.
Bd1 {[%clk 0:00:06]} 50... Ng5+ {[%clk 0:01:02.6]} 51. Kf4 {[%clk 0:00:05.7]}
51... Ra3 {[%clk 0:01:02.5]} 52. Kg4 {[%clk 0:00:05]} 52... Rc3 {[%clk
0:01:00.2]} 53. Be2 {[%clk 0:00:04.5]} 53... Rc2 {[%clk 0:00:57.9]} 54. Bd1
{[%clk 0:00:04.3]} 54... Rg2+ {[%clk 0:00:57.4]} 55. Kf4 {[%clk 0:00:03.3]}
55... Rd2 {[%clk 0:00:56.3]} 56. Bb3 {[%clk 0:00:02.7]} 56... Rd3 {[%clk
0:00:55.8]} 57. Ba2 {[%clk 0:00:03.1]} 57... Ra3 {[%clk 0:00:54]} 58. Bb1 {[%clk
0:00:03.4]} 58... Rxa4 {[%clk 0:00:53.9]} 59. Bd3 {[%clk 0:00:04.1]} 59... Ra3
{[%clk 0:00:53.9]} 60. Be2 {[%clk 0:00:04.2]} 60... Nf7 {[%clk 0:00:53.4]} 61.
Bf1 {[%clk 0:00:03.6]} 61... Ne5 {[%clk 0:00:52.8]} 0-1

[Event "*** Titled Tuesday Blitz"]
[Site "Chess.com"]
[Date "2020.04.28"]
[Round "7"]
[White "Stewie_89"]
[Black "atalz0"]
[Result "1-0"]
[WhiteElo "2626"]
[BlackElo "2429"]
[TimeControl "180+1"]
[EndTime "11:18:57 PDT"]
[Termination "Stewie_89 won by resignation"]

1. e4 {[%clk 0:03:00.9]} 1... d5 {[%clk 0:02:59.5]} 2. exd5 {[%clk 0:03:00.5]}
2... Nf6 {[%clk 0:02:59.7]} 3. Bb5+ {[%clk 0:02:59.9]} 3... Bd7 {[%clk
0:02:59.5]} 4. Be2 {[%clk 0:02:59.6]} 4... Nxd5 {[%clk 0:02:58.9]} 5. d4 {[%clk
0:03:00.2]} 5... Bf5 {[%clk 0:02:58.4]} 6. a3 {[%clk 0:02:59.8]} 6... e6 {[%clk
0:02:58.1]} 7. c4 {[%clk 0:02:59.9]} 7... Nf6 {[%clk 0:02:54.9]} 8. Nc3 {[%clk
0:02:58.2]} 8... Be7 {[%clk 0:02:50.5]} 9. Nf3 {[%clk 0:02:57.6]} 9... O-O
{[%clk 0:02:50.1]} 10. h3 {[%clk 0:02:57.5]} 10... Ne4 {[%clk 0:02:50.2]} 11.
Nxe4 {[%clk 0:02:41.3]} 11... Bxe4 {[%clk 0:02:51.1]} 12. Be3 {[%clk 0:02:41.6]}
12... Nc6 {[%clk 0:02:43.8]} 13. Qd2 {[%clk 0:02:34.7]} 13... b6 {[%clk
0:02:32]} 14. O-O {[%clk 0:02:34]} 14... Bf6 {[%clk 0:02:24.9]} 15. Rad1 {[%clk
0:02:27.3]} 15... Qe7 {[%clk 0:02:19.4]} 16. Ng5 {[%clk 0:02:20.4]} 16... Bxg5
{[%clk 0:01:51.5]} 17. Bxg5 {[%clk 0:02:19.5]} 17... f6 {[%clk 0:01:51.6]} 18.
Be3 {[%clk 0:02:17.7]} 18... Rad8 {[%clk 0:01:51.5]} 19. Qc3 {[%clk 0:02:16.5]}
19... Kh8 {[%clk 0:01:24.9]} 20. b4 {[%clk 0:02:00.4]} 20... Nb8 {[%clk
0:01:17.1]} 21. c5 {[%clk 0:01:53.6]} 21... Bd5 {[%clk 0:01:08]} 22. Bd3 {[%clk
0:01:51.4]} 22... f5 {[%clk 0:01:03.1]} 23. Bf4 {[%clk 0:01:49.5]} 23... Nc6
{[%clk 0:00:55]} 24. Bb1 {[%clk 0:01:14.9]} 24... Rd7 {[%clk 0:00:44.1]} 25. b5
{[%clk 0:01:14.2]} 25... Na5 {[%clk 0:00:43.6]} 26. c6 {[%clk 0:01:10.6]} 26...
Rdd8 {[%clk 0:00:42.8]} 27. Bd3 {[%clk 0:01:09.6]} 27... Rf7 {[%clk 0:00:29.8]}
28. Be5 {[%clk 0:01:09]} 28... Bb3 {[%clk 0:00:25.1]} 29. Rb1 {[%clk 0:01:00.7]}
29... Bd5 {[%clk 0:00:17.7]} 30. Rbe1 {[%clk 0:00:51.5]} 30... Qg5 {[%clk
0:00:17.3]} 31. f3 {[%clk 0:00:47.6]} 31... h5 {[%clk 0:00:13.2]} 32. Kh2 {[%clk
0:00:32.5]} 32... h4 {[%clk 0:00:12.6]} 33. Re2 {[%clk 0:00:22.3]} 33... f4
{[%clk 0:00:12.6]} 34. Bb1 {[%clk 0:00:19.7]} 34... Qg3+ {[%clk 0:00:12.4]} 35.
Kg1 {[%clk 0:00:19.4]} 35... Nc4 {[%clk 0:00:12.1]} 36. Qd3 {[%clk 0:00:19.6]}
36... Rf5 {[%clk 0:00:09.5]} 37. Qc3 {[%clk 0:00:15.6]} 37... Nxe5 {[%clk
0:00:09.4]} 38. Bxf5 {[%clk 0:00:14.7]} 38... Nxf3+ {[%clk 0:00:05.4]} 39. Rxf3
{[%clk 0:00:14.6]} 39... Bxf3 {[%clk 0:00:05.6]} 40. Qxf3 {[%clk 0:00:14]} 40...
Qxf3 {[%clk 0:00:05.8]} 41. gxf3 {[%clk 0:00:14.9]} 41... exf5 {[%clk
0:00:06.4]} 42. Re7 {[%clk 0:00:14.8]} 42... Rxd4 {[%clk 0:00:06.5]} 43. Rxc7
{[%clk 0:00:15]} 43... Rd1+ {[%clk 0:00:04]} 44. Kf2 {[%clk 0:00:14.7]} 44...
Rd2+ {[%clk 0:00:04.4]} 45. Ke1 {[%clk 0:00:14.9]} 45... Rd3 {[%clk 0:00:04.8]}
46. Rd7 {[%clk 0:00:14.6]} 46... Rxf3 {[%clk 0:00:03.9]} 47. c7 {[%clk
0:00:14.9]} 47... Re3+ {[%clk 0:00:02.7]} 48. Kf2 {[%clk 0:00:13.8]} 48... Rc3
{[%clk 0:00:02.4]} 49. Rd8+ {[%clk 0:00:13.9]} 49... Kh7 {[%clk 0:00:02.8]} 50.
c8=Q {[%clk 0:00:14.8]} 50... Rxc8 {[%clk 0:00:02.9]} 1-0

[Event "*** Titled Tuesday Blitz"]
[Site "Chess.com"]
[Date "2020.04.28"]
[Round "7"]
[White "Balla_Tamas"]
[Black "Nikolakis2014"]
[Result "1-0"]
[WhiteElo "2558"]
[BlackElo "2701"]
[TimeControl "180+1"]
[EndTime "11:18:59 PDT"]
[Termination "Balla_Tamas won by resignation"]

1. e4 {[%clk 0:03:00.9]} 1... c5 {[%clk 0:03:00]} 2. d3 {[%clk 0:03:00.4]} 2...
Nc6 {[%clk 0:02:59.6]} 3. g3 {[%clk 0:03:00.6]} 3... e6 {[%clk 0:02:59.8]} 4.
Bg2 {[%clk 0:03:01.1]} 4... d5 {[%clk 0:03:00]} 5. f4 {[%clk 0:02:58.3]} 5... d4
{[%clk 0:02:55.1]} 6. e5 {[%clk 0:02:51.2]} 6... Nge7 {[%clk 0:02:54.4]} 7. Nd2
{[%clk 0:02:49.7]} 7... Nd5 {[%clk 0:02:54.3]} 8. Ne4 {[%clk 0:02:49.4]} 8...
Be7 {[%clk 0:02:54.4]} 9. c4 {[%clk 0:02:44.8]} 9... dxc3 {[%clk 0:02:53.3]} 10.
bxc3 {[%clk 0:02:44.3]} 10... O-O {[%clk 0:02:54]} 11. Ne2 {[%clk 0:02:40.4]}
11... b5 {[%clk 0:02:49.3]} 12. a4 {[%clk 0:02:25.5]} 12... bxa4 {[%clk
0:02:35]} 13. Qxa4 {[%clk 0:02:21.7]} 13... Bb7 {[%clk 0:02:34.8]} 14. O-O
{[%clk 0:02:14.9]} 14... Nb6 {[%clk 0:02:26.5]} 15. Qc2 {[%clk 0:02:13.6]} 15...
a5 {[%clk 0:02:26.4]} 16. Be3 {[%clk 0:02:08.2]} 16... Nd5 {[%clk 0:02:23.2]}
17. Bf2 {[%clk 0:02:04.5]} 17... Rc8 {[%clk 0:02:23.2]} 18. Rfb1 {[%clk
0:01:28.9]} 18... Ba6 {[%clk 0:02:19.4]} 19. Bxc5 {[%clk 0:01:18]} 19... Bxc5+
{[%clk 0:02:02.4]} 20. Nxc5 {[%clk 0:01:18]} 20... Ne3 {[%clk 0:02:02.5]} 21.
Qd2 {[%clk 0:01:17.9]} 21... Nxg2 {[%clk 0:01:56.4]} 22. Nxa6 {[%clk 0:01:15.3]}
22... Qd5 {[%clk 0:01:45.2]} 23. Nc1 {[%clk 0:01:12]} 23... Qd7 {[%clk
0:00:48.8]} 24. Nc5 {[%clk 0:01:05.2]} 24... Qd5 {[%clk 0:00:44.8]} 25. Nb7
{[%clk 0:00:55.2]} 25... Nb4 {[%clk 0:00:25]} 26. cxb4 {[%clk 0:00:47.5]} 26...
Ne1 {[%clk 0:00:24.9]} 27. Qxe1 {[%clk 0:00:42.9]} 27... Rc2 {[%clk 0:00:24.7]}
28. Ne2 {[%clk 0:00:42.1]} 28... Qf3 {[%clk 0:00:24.8]} 29. Qf2 {[%clk
0:00:38.3]} 29... Qxb7 {[%clk 0:00:23.8]} 30. bxa5 {[%clk 0:00:38.3]} 30... Qa6
{[%clk 0:00:23.5]} 31. Qe3 {[%clk 0:00:35.9]} 31... h5 {[%clk 0:00:20.1]} 32.
Rb6 {[%clk 0:00:34.7]} 32... Qa8 {[%clk 0:00:20.1]} 33. a6 {[%clk 0:00:34.2]}
33... Rfc8 {[%clk 0:00:19.8]} 34. a7 {[%clk 0:00:33.9]} 34... R2c7 {[%clk
0:00:19.4]} 35. Rba6 {[%clk 0:00:31.1]} 35... Rb7 {[%clk 0:00:19.1]} 36. Kf2
{[%clk 0:00:29.6]} 36... Rb2 {[%clk 0:00:18.9]} 37. Qf3 {[%clk 0:00:28.5]} 37...
Rb7 {[%clk 0:00:16.1]} 38. R6a2 {[%clk 0:00:25.2]} 38... g6 {[%clk 0:00:14.5]}
39. Nd4 {[%clk 0:00:25]} 39... Rcc7 {[%clk 0:00:13.4]} 40. Nc6 {[%clk
0:00:23.7]} 40... Kg7 {[%clk 0:00:13.3]} 41. Na5 {[%clk 0:00:22.7]} 41... Rxa7
{[%clk 0:00:12.8]} 42. Qxa8 {[%clk 0:00:23.3]} 42... Rxa8 {[%clk 0:00:13.4]} 43.
Nc4 {[%clk 0:00:24.2]} 43... Rb8 {[%clk 0:00:13.4]} 44. Rc2 {[%clk 0:00:23.8]}
44... Rd8 {[%clk 0:00:14]} 45. Rd1 {[%clk 0:00:23.5]} 45... Rcd7 {[%clk
0:00:14.4]} 46. Rcd2 {[%clk 0:00:23.7]} 46... Rd4 {[%clk 0:00:14.8]} 47. Ne3
{[%clk 0:00:24.6]} 47... h4 {[%clk 0:00:14.9]} 48. Ng2 {[%clk 0:00:23.9]} 48...
h3 {[%clk 0:00:14.5]} 49. Ne3 {[%clk 0:00:23.9]} 49... Ra4 {[%clk 0:00:15.4]}
50. Kf3 {[%clk 0:00:24.4]} 50... Ra3 {[%clk 0:00:15.7]} 51. Ng4 {[%clk
0:00:24.7]} 51... Rc8 {[%clk 0:00:16]} 52. Nf2 {[%clk 0:00:25.3]} 52... Rcc3
{[%clk 0:00:16.2]} 53. Nxh3 {[%clk 0:00:25.9]} 53... Rcb3 {[%clk 0:00:16.7]} 54.
Nf2 {[%clk 0:00:26.4]} 54... Rb4 {[%clk 0:00:17.6]} 55. Ne4 {[%clk 0:00:27]}
55... Rd4 {[%clk 0:00:18.1]} 56. Nd6 {[%clk 0:00:27.3]} 56... Rd5 {[%clk
0:00:18.3]} 57. Ke3 {[%clk 0:00:27.2]} 57... Ra4 {[%clk 0:00:17.4]} 58. Ne4
{[%clk 0:00:27.7]} 58... g5 {[%clk 0:00:18.3]} 59. Nc3 {[%clk 0:00:28.1]} 59...
Kg6 {[%clk 0:00:19.2]} 60. Nxd5 {[%clk 0:00:28.2]} 60... exd5 {[%clk 0:00:19.5]}
61. d4 {[%clk 0:00:28.9]} 61... Ra3+ {[%clk 0:00:19.4]} 62. Rd3 {[%clk
0:00:28.4]} 62... Ra4 {[%clk 0:00:20.3]} 1-0

[Event "*** Titled Tuesday Blitz"]
[Site "Chess.com"]
[Date "2020.04.28"]
[Round "7"]
[White "Berardino"]
[Black "vaishali2001"]
[Result "1-0"]
[WhiteElo "2675"]
[BlackElo "2501"]
[TimeControl "180+1"]
[EndTime "11:18:59 PDT"]
[Termination "Berardino won on time"]

1. e4 {[%clk 0:03:00.9]} 1... e5 {[%clk 0:02:58.8]} 2. Bc4 {[%clk 0:03:01]} 2...
Nf6 {[%clk 0:02:55.8]} 3. d3 {[%clk 0:03:01]} 3... Nc6 {[%clk 0:02:54.5]} 4. Nc3
{[%clk 0:02:59.4]} 4... Na5 {[%clk 0:02:52]} 5. Qf3 {[%clk 0:02:57.6]} 5... d6
{[%clk 0:02:30.6]} 6. Nge2 {[%clk 0:02:47.5]} 6... Be7 {[%clk 0:02:28.3]} 7. O-O
{[%clk 0:02:45.5]} 7... Nxc4 {[%clk 0:02:22.3]} 8. dxc4 {[%clk 0:02:45.3]} 8...
Be6 {[%clk 0:02:13]} 9. b3 {[%clk 0:02:45.1]} 9... O-O {[%clk 0:02:11.1]} 10.
Ng3 {[%clk 0:02:42.7]} 10... c6 {[%clk 0:02:06]} 11. Nf5 {[%clk 0:02:38.7]}
11... Bxf5 {[%clk 0:01:59]} 12. Qxf5 {[%clk 0:02:38.4]} 12... Qc8 {[%clk
0:01:54]} 13. Qxc8 {[%clk 0:02:34]} 13... Raxc8 {[%clk 0:01:53.1]} 14. Rd1
{[%clk 0:02:31.8]} 14... Rfd8 {[%clk 0:01:45.5]} 15. Be3 {[%clk 0:02:30.2]}
15... b5 {[%clk 0:01:26.2]} 16. f3 {[%clk 0:02:21.8]} 16... bxc4 {[%clk
0:01:16.8]} 17. bxc4 {[%clk 0:02:22.7]} 17... Rd7 {[%clk 0:01:17.1]} 18. Rab1
{[%clk 0:02:22]} 18... Bd8 {[%clk 0:01:16.4]} 19. Kf1 {[%clk 0:02:07.3]} 19...
Ba5 {[%clk 0:01:11.4]} 20. Na4 {[%clk 0:02:04.8]} 20... h6 {[%clk 0:01:06.3]}
21. Ke2 {[%clk 0:02:04.1]} 21... Rcd8 {[%clk 0:00:53.7]} 22. Rb3 {[%clk
0:01:49.6]} 22... Kf8 {[%clk 0:00:31.4]} 23. Rdb1 {[%clk 0:01:40.8]} 23... Ke7
{[%clk 0:00:27.3]} 24. Rb7 {[%clk 0:01:39.4]} 24... Rxb7 {[%clk 0:00:16.9]} 25.
Rxb7+ {[%clk 0:01:40.3]} 25... Rd7 {[%clk 0:00:17.3]} 26. Rxa7 {[%clk
0:01:27.3]} 26... Rxa7 {[%clk 0:00:15]} 27. Bxa7 {[%clk 0:01:28.2]} 27... d5
{[%clk 0:00:14.2]} 28. cxd5 {[%clk 0:01:12.8]} 28... cxd5 {[%clk 0:00:15.1]} 29.
Bb6 {[%clk 0:00:43.8]} 29... Bxb6 {[%clk 0:00:10.9]} 30. Nxb6 {[%clk 0:00:44.7]}
30... dxe4 {[%clk 0:00:11.2]} 31. fxe4 {[%clk 0:00:42.8]} 31... Nxe4 {[%clk
0:00:12.1]} 32. a4 {[%clk 0:00:40.2]} 32... Kd6 {[%clk 0:00:11]} 33. Nc4+ {[%clk
0:00:40.4]} 33... Kd5 {[%clk 0:00:09.7]} 34. Ne3+ {[%clk 0:00:40.3]} 34... Kc5
{[%clk 0:00:09.4]} 35. Nf5 {[%clk 0:00:36.2]} 35... g6 {[%clk 0:00:07]} 36. Nxh6
{[%clk 0:00:35.5]} 36... Nd6 {[%clk 0:00:07.5]} 37. h4 {[%clk 0:00:30.3]} 37...
Kb4 {[%clk 0:00:07.5]} 38. Ng4 {[%clk 0:00:30.5]} 38... Kxa4 {[%clk 0:00:04.3]}
39. Nxe5 {[%clk 0:00:30.5]} 39... Kb4 {[%clk 0:00:04.6]} 40. g4 {[%clk
0:00:30.6]} 40... Kc3 {[%clk 0:00:04.7]} 41. h5 {[%clk 0:00:29.5]} 41... gxh5
{[%clk 0:00:04.5]} 42. gxh5 {[%clk 0:00:30.4]} 42... Kxc2 {[%clk 0:00:03.8]} 43.
h6 {[%clk 0:00:29.4]} 43... f6 {[%clk 0:00:02.1]} 44. h7 {[%clk 0:00:28.9]}
44... fxe5 {[%clk 0:00:02.4]} 45. h8=Q {[%clk 0:00:29.3]} 45... Nc4 {[%clk
0:00:02.5]} 46. Qc8 {[%clk 0:00:26.4]} 46... Kc3 {[%clk 0:00:03.4]} 47. Qc5
{[%clk 0:00:25.9]} 47... e4 {[%clk 0:00:02.2]} 48. Qc6 {[%clk 0:00:23.5]} 48...
e3 {[%clk 0:00:02.2]} 49. Qc5 {[%clk 0:00:23.7]} 1-0

[Event "*** Titled Tuesday Blitz"]
[Site "Chess.com"]
[Date "2020.04.28"]
[Round "7"]
[White "amiralfio"]
[Black "Galileo22"]
[Result "0-1"]
[WhiteElo "2475"]
[BlackElo "2346"]
[TimeControl "180+1"]
[EndTime "11:19:02 PDT"]
[Termination "Galileo22 won by resignation"]

1. e4 {[%clk 0:03:00.9]} 1... c5 {[%clk 0:02:59.1]} 2. Nf3 {[%clk 0:03:01.4]}
2... d6 {[%clk 0:02:59.6]} 3. d4 {[%clk 0:03:00.5]} 3... cxd4 {[%clk 0:03:00.5]}
4. Nxd4 {[%clk 0:02:56.3]} 4... Nf6 {[%clk 0:03:01]} 5. Nc3 {[%clk 0:02:56.4]}
5... a6 {[%clk 0:03:01.4]} 6. Rg1 {[%clk 0:02:51.1]} 6... h5 {[%clk 0:02:49.9]}
7. Bg5 {[%clk 0:02:43.5]} 7... e6 {[%clk 0:02:35.4]} 8. Qd2 {[%clk 0:02:38.7]}
8... Be7 {[%clk 0:02:32.4]} 9. O-O-O {[%clk 0:02:37.4]} 9... Qc7 {[%clk
0:02:31.9]} 10. Kb1 {[%clk 0:02:36.2]} 10... Nbd7 {[%clk 0:02:30.1]} 11. h3
{[%clk 0:02:35.1]} 11... b5 {[%clk 0:02:25.3]} 12. f3 {[%clk 0:02:33.1]} 12...
Bb7 {[%clk 0:02:11.4]} 13. g4 {[%clk 0:02:28.7]} 13... hxg4 {[%clk 0:01:43]} 14.
hxg4 {[%clk 0:02:29.6]} 14... Nb6 {[%clk 0:01:41.6]} 15. Bxf6 {[%clk 0:02:02.3]}
15... gxf6 {[%clk 0:01:38.5]} 16. a3 {[%clk 0:01:54.6]} 16... O-O-O {[%clk
0:01:08.7]} 17. f4 {[%clk 0:01:33.5]} 17... d5 {[%clk 0:00:39.2]} 18. exd5
{[%clk 0:01:26.9]} 18... Nxd5 {[%clk 0:00:38]} 19. Nxd5 {[%clk 0:01:26.3]} 19...
Bxd5 {[%clk 0:00:30.4]} 20. Qe3 {[%clk 0:01:15.9]} 20... Bc5 {[%clk 0:00:28.5]}
21. c3 {[%clk 0:01:09.6]} 21... Kb8 {[%clk 0:00:26.8]} 22. Qe2 {[%clk
0:00:45.7]} 22... e5 {[%clk 0:00:21.7]} 23. fxe5 {[%clk 0:00:39]} 23... fxe5
{[%clk 0:00:22.6]} 24. Nxb5 {[%clk 0:00:35.9]} 24... axb5 {[%clk 0:00:21.4]} 25.
Qxb5+ {[%clk 0:00:36.8]} 25... Qb6 {[%clk 0:00:20]} 26. Qxb6+ {[%clk 0:00:13]}
26... Bxb6 {[%clk 0:00:20.9]} 27. Rg3 {[%clk 0:00:08.8]} 27... Ba2+ {[%clk
0:00:15]} 28. Kc2 {[%clk 0:00:09.1]} 28... Bb3+ {[%clk 0:00:13.9]} 29. Kxb3
{[%clk 0:00:09.6]} 29... Rxd1 {[%clk 0:00:14.2]} 30. Bc4 {[%clk 0:00:10.4]}
30... Rg1 {[%clk 0:00:13.5]} 31. Rf3 {[%clk 0:00:10]} 31... Rxg4 {[%clk
0:00:11.6]} 32. Rxf7 {[%clk 0:00:09.2]} 32... Rh2 {[%clk 0:00:08.1]} 33. Bd5
{[%clk 0:00:09.1]} 33... Bc7 {[%clk 0:00:08.2]} 34. Rf8+ {[%clk 0:00:08.7]}
34... Ka7 {[%clk 0:00:08]} 35. a4 {[%clk 0:00:08]} 35... Kb6 {[%clk 0:00:07.8]}
36. Rf6+ {[%clk 0:00:07.5]} 36... Kc5 {[%clk 0:00:07.4]} 37. Bb7 {[%clk
0:00:07.2]} 37... Bd6 {[%clk 0:00:03]} 38. a5 {[%clk 0:00:07.6]} 38... Kb5
{[%clk 0:00:03.1]} 39. Rxd6 {[%clk 0:00:06.4]} 39... Kxa5 {[%clk 0:00:04]} 40.
Rd5+ {[%clk 0:00:06.7]} 40... Kb6 {[%clk 0:00:04.6]} 41. Bc8 {[%clk 0:00:07.4]}
41... Rgg2 {[%clk 0:00:04.7]} 42. Kc4 {[%clk 0:00:06.8]} 42... Rxb2 {[%clk
0:00:05.6]} 43. Bf5 {[%clk 0:00:07.2]} 43... Kc7 {[%clk 0:00:06.5]} 44. Rxe5
{[%clk 0:00:07.5]} 44... Rbf2 {[%clk 0:00:06.5]} 45. Be4 {[%clk 0:00:07]} 45...
Kd6 {[%clk 0:00:07.4]} 46. Kd4 {[%clk 0:00:07.5]} 46... Rd2+ {[%clk 0:00:06.9]}
47. Bd3 {[%clk 0:00:07.7]} 47... Rxd3+ {[%clk 0:00:07.2]} 48. Kxd3 {[%clk
0:00:08.6]} 48... Kxe5 {[%clk 0:00:08]} 49. Kc4 {[%clk 0:00:09.5]} 49... Rh3
{[%clk 0:00:08.9]} 50. Kb4 {[%clk 0:00:10.4]} 50... Kd5 {[%clk 0:00:09.1]} 51.
c4+ {[%clk 0:00:11.3]} 51... Kc6 {[%clk 0:00:10]} 52. c5 {[%clk 0:00:11.7]}
52... Rh4+ {[%clk 0:00:09.5]} 0-1